Cogmind - Beta 16 *** ADVENTURER MODE // 2025.10.26 @ 21:10:38 Player: Plonker Result: Destroyed by S-27 Virus with Autogun Performance ------------- Evolutions (3) 1500 Regions Visited (7) 1400 Robots Destroyed (60) 300 Value Destroyed (1949) 1949 Prototype IDs (4) 80 Alien Tech Used (0) 0 Bonus (0) 0 TOTAL SCORE: 5229 Bonus ------- None Cogmind --------- Core Integrity 0/700 Matter 300/300 Energy 100/100 System Corruption 4% Temperature Cool (0) Movement Core (50) Location -7/Lower Caves Parts ------- > --- POWER (1) -------- (None) > --- PROPULSION (4) --- (None) > --- UTILITY (6) ------ Improved Signal Interpreter Advanced Targeting Computer > --- WEAPON (2) ------- (None) > --- INVENTORY (5) ---- Advanced ECM Suite Peak State ------------ > --- POWER ------------ Light Nuclear Core > --- PROPULSION ------- Armored Wheel Armored Wheel Armored Huge Wheel > --- UTILITY ---------- Improved Signal Interpreter Advanced Targeting Computer Improved Propulsion Shielding Hardened Heavy Armor Plating Hacking Suite > --- WEAPON ----------- Gatling Laser Katana > --- INVENTORY -------- Deuterium Engine Light Angular Momentum Engine Armored Wheel Advanced ECM Suite Katana [Rating: 43] Favorites ----------- Power Light Nuclear Core Engine Heavy Ion Engine Power Core Light Nuclear Core Propulsion Armored Wheel Leg Aluminum Leg Wheel Armored Wheel Hover Unit Hover Unit Utility Advanced Targeting Computer Device Advanced Weight Redist. System Storage Compact Matter Pod Processor Advanced Targeting Computer Hackware Hacking Suite Protection Improved Propulsion Shielding Weapon Improved Light Cannon Energy Gun Gatling Laser Ballistic Gun Light Assault Rifle Ballistic Cannon Improved Light Cannon Launcher Grenade Launcher Impact Weapon Great Maul Slashing Weapon Katana Build | -11 -10 -9 -9 -8 -7 -7 -7 ------- Run | Yrd Mat Mat Min Mat Fac Low Low Slots Evolved 6 | . . 2 . 2 2 . . Power . | . . . . . . . . Propulsion 2 | . . 2 . . . . . Utility 4 | . . . . 2 2 . . Weapon . | . . . . . . . . Parts Attached 47 | 6 4 4 . 12 15 3 3 Power 8 | 1 . . . 1 3 1 2 Engine 5 | 1 . . . 1 1 1 1 Core 3 | . . . . . 2 . 1 Reactor . | . . . . . . . . Propulsion 12 | 2 . 2 . 5 3 . . Treads . | . . . . . . . . Leg 3 | . . 2 . 1 . . . Wheel 6 | 2 . . . 1 3 . . Hover 3 | . . . . 3 . . . Flight . | . . . . . . . . Utility 16 | 1 1 2 . 5 6 . 1 Device 4 | . . 1 . 2 . . 1 Storage 4 | 1 1 1 . 1 . . . Processor 2 | . . . . 1 1 . . Hackware 1 | . . . . . 1 . . Protection 5 | . . . . 1 4 . . Artifact . | . . . . . . . . Weapon 11 | 2 3 . . 1 3 2 . Energy Gun 3 | . . . . . 3 . . Energy Cannon . | . . . . . . . . Ballistic Gun 2 | 2 . . . . . . . Ballistic Cannon 2 | . 2 . . . . . . Launcher 1 | . 1 . . . . . . Special Weapon . | . . . . . . . . Impact Weapon 1 | . . . . . . 1 . Slashing Weapon 2 | . . . . 1 . 1 . Piercing Weapon . | . . . . . . . . Special Melee Weapon . | . . . . . . . . Unidentified Prototypes 2 | . . . . 1 1 . . Parts Lost 22 | . . 1 . 3 2 10 6 Power 5 | . . . . . . 2 3 Propulsion 7 | . . 1 . 2 . 3 1 Utility 5 | . . . . 1 1 2 1 Weapon 5 | . . . . . 1 3 1 Highest Loss Streak 8 | . . 1 . 2 2 8 2 To Critical Strikes . | . . . . . . . . Average Backups 3 | 1 1 4 4 4 4 4 1 Power 1 | . 1 2 3 2 2 2 . Propulsion . | . . 1 1 . 1 . . Utility . | . . . . . . 1 1 Weapon . | . . . . . 1 . . Tool/Special . | . . . . . . . . Unused Backups 4 | . . . . 4 . . . Power 3 | . . . . 3 . . . Propulsion 1 | . . . . 1 . . . Utility . | . . . . . . . . Weapon . | . . . . . . . . Tool/Special . | . . . . . . . . Average Slot Usage (%) 74 | . 85 84 88 89 88 76 31 Engine 4 | . 14 11 11 9 1 2 3 Core 2 | . . . . . 5 4 1 Leg 2 | . . 10 22 5 . . . Wheel 16 | . 28 18 11 12 22 20 . Hover 2 | . . . . 13 1 . . Device 5 | . . 8 11 13 11 . . Storage 4 | . 14 13 11 11 . . . Processor 10 | . . . . 4 15 15 15 Hackware 4 | . . . . . 6 7 6 Protection 5 | . . . . . 8 12 . Energy Gun 1 | . . . . . 1 5 . Ballistic Cannon 5 | . 14 16 22 12 4 . . Slashing Weapon 4 | . . . . 5 7 5 . Peak Build Rating 43 | 6 8 11 10 28 43 43 20 Average Rating 26 | 3 7 9 10 21 38 38 14 On Entrance 15 | . 6 8 10 10 28 43 20 Avg Prop Armor Cover (%) 7 | . . 12 13 6 3 . . Naked Turns . | . . . . . . . . Heaviest Build 37 | 13 37 37 15 20 33 37 14 Greatest Support 61 | 20 20 20 10 29 61 52 12 Greatest Overweight (x) 4 | 1 1 1 1 1 . 1 4 Average Overweight (x) . | . . . 1 . . . 1 Largest Inventory Capacity 15 | 8 15 15 5 5 5 5 5 Average Capacity 5 | 6 8 11 5 5 5 5 5 Most Carried 6 | 5 6 6 4 5 5 5 3 Average Carried 3 | 1 1 4 4 4 4 4 1 Final Capacity 15 | 8 15 5 5 5 5 5 5 Final Carried 5 | 1 5 4 4 5 5 3 1 Class Distribution -------------------- 65% | Hacker-Mutant 34% | Mutant Dominant Class ---------------- Mutant | -10/Materials Mutant | -9/Materials Mutant | -9/Mines Mutant | -8/Materials Hacker-Mutant | -7/Factory Hacker-Mutant | -7/Lower Caves Hacker-Mutant | -7/Lower Caves Resources | -11 -10 -9 -9 -8 -7 -7 -7 ----------- Run | Yrd Mat Mat Min Mat Fac Low Low Matter Collected 1336 | 205 20 460 40 337 126 93 55 Remotely . | . . . . . . . . Salvage Created 1845 | . 89 188 16 379 615 384 174 Parts 94 | . 9 16 3 21 26 17 2 Haulers Intercepted 1 | . . . . 1 . . . Recyclers Shooed 2 | . . . 2 . . . . Parts Field Recycled . | . . . . . . . . Retrieved Matter . | . . . . . . . . Parts Self-Destructed 17 | . . . . . . 17 . Prevented 3 | . . . . . . 1 2 Parts Restored . | . . . . . . . . Kills | -11 -10 -9 -9 -8 -7 -7 -7 ------- Run | Yrd Mat Mat Min Mat Fac Low Low Combat Hostiles Destroyed 51 | . 3 13 3 8 11 9 4 Melee 21 | . . . . 3 11 5 2 Guns 4 | . . . . . . 4 . Cannons 18 | . 1 11 3 3 . . . AOE 6 | . 2 2 . 2 . . . Classes Destroyed 11 | . 2 3 . 4 1 . 1 Worker 1 | . . 1 . . . . . Hauler 1 | . . . . 1 . . . Recycler 2 | . . . . 2 . . . Operator 2 | . . . . 1 1 . . Watcher 3 | . 2 . . . 1 . . Swarmer 18 | . . 8 3 3 . 4 . Grunt 23 | . 3 3 . 4 7 3 3 Duelist 1 | . . . . . . . 1 Sentry 6 | . . 2 . . 2 2 . Hunter 1 | . . . . 1 . . . Programmer 2 | . . . . . 2 . . Best Kill Streak 5 | . 5 4 4 4 2 3 2 Combat Bots Only 4 | . 3 4 4 3 2 3 2 Max Kills in Single Turn 2 | . 1 2 1 2 1 1 1 Gunslinging . | . . . . . . . . Exploded 2 | . 1 1 . 2 . . . Melee 1 | . . . . 1 1 1 1 Uniques/NPCs Destroyed . | . . . . . . . . Combat | -11 -10 -9 -9 -8 -7 -7 -7 -------- Run | Yrd Mat Mat Min Mat Fac Low Low Hostile Shots Fired 584 | . 3 40 11 39 215 173 103 Missed 199 | . . 9 2 11 82 57 38 Hits 385 | . 3 31 9 28 133 116 65 Projectile 385 | . 3 31 9 28 133 116 65 AOE 1 | . . . . . 1 . . Critical Strikes 6 | . . . . . 3 1 2 Actively Blocked 1 | . . . . . . 1 . Part Disruptions 1 | . . . . . . 1 . Damage Taken 3750 | . 25 265 52 379 1169 1189 671 Core 859 | . 8 53 18 72 99 209 400 Absorbed by Shields . | . . . . . . . . Redirected to Shielding 166 | . . . . 65 26 75 . Ignored by Resistances 1114 | . 8 83 18 110 359 348 188 Core Remaining (%) 91 | 100 96 . 82 86 . . . Volleys Fired 72 | . 7 24 7 22 4 8 . Largest 2 | . 2 2 2 2 1 1 . Hottest 80 | . 63 66 66 66 33 80 . Shots Fired 111 | . 12 43 14 30 4 8 . Gun 8 | . . . . . . 8 . Cannon 90 | . 7 35 14 30 4 . . Launcher 13 | . 5 8 . . . . . Special . | . . . . . . . . Kinetic 90 | . 7 35 14 30 4 . . Thermal 8 | . . . . . . 8 . Explosive 13 | . 5 8 . . . . . Electromagnetic . | . . . . . . . . Robot Hit Streak 17 | . 8 4 4 7 11 17 . Robot Miss Streak 4 | . 2 4 1 2 . 3 . Penetration Max . | . . . . . . . . Secondary Targets . | . . . . . . . . Shots Hit Robots 173 | . 9 25 8 35 50 39 7 Core Hits 76 | . 6 17 3 15 19 15 1 Critical Kills . | . . . . . . . . Critical Parts Destroyed 4 | . . . . . . 1 3 Critical Strikes 22 | . . 1 . 2 12 4 3 Blast 2 | . . 1 . 1 . . . Smash 4 | . . . . . . 1 3 Sever 16 | . . . . 1 12 3 . Melee Attacks 102 | . . . . 14 48 33 7 Impact 11 | . . . . . . 4 7 Slashing 91 | . . . . 14 48 29 . Piercing . | . . . . . . . . Sneak Attacks 5 | . . . . 3 2 . . Combat Hostiles 1 | . . . . . 1 . . Follow-up Attacks . | . . . . . . . . Damage Inflicted 5737 | . 309 747 171 1271 1634 1249 356 Guns 162 | . . . . . . 162 . Cannons 1275 | . 124 478 171 406 96 . . Explosions 795 | . 185 269 . 341 . . . Melee 3505 | . . . . 524 1538 1087 356 Ramming . | . . . . . . . . Kinetic 1275 | . 124 478 171 406 96 . . Thermal 503 | . . . . 341 . 162 . Explosive 454 | . 185 269 . . . . . Electromagnetic . | . . . . . . . . Impact 539 | . . . . . . 183 356 Slashing 2966 | . . . . 524 1538 904 . Piercing . | . . . . . . . . Highest Corruption 4 | . . . . . 1 4 4 Average Corruption 2 | . . . . . 1 1 4 Corruption Purged . | . . . . . . . . Corruption Blocked . | . . . . . . . . Effects 23 | . . . . . 1 11 11 Message Errors 2 | . . . . . . 1 1 Matter Fused 13 | . . . . . . 7 6 Heat Flow Errors 3 | . . . . . 1 1 1 Energy Discharges 3 | . . . . . . 1 2 Parts Rejected 1 | . . . . . . 1 . Data Loss (major) 1 | . . . . . . . 1 Overload Shots . | . . . . . . . . Overflow Damage 507 | . . . . 147 50 158 152 Projectiles 13 | . . . . . 13 . . Explosions 77 | . . . . 77 . . . Melee 417 | . . . . 70 37 158 152 Knockbacks 18 | . 3 3 2 6 . . 4 Impact 4 | . . . . . . . 4 Kinetic 13 | . 3 3 1 6 . . . Secondary 1 | . . . 1 . . . . Self-Inflicted Damage 120 | . . 30 . 90 . . . Shots 2 | . . 1 . 1 . . . Rammed . | . . . . . . . . Targets Rammed . | . . . . . . . . Kicked . | . . . . . . . . Crushed . | . . . . . . . . Highest Temperature 210 | . 27 9 . 3 198 210 167 Average Temperature 61 | . 11 5 . 3 84 92 77 Received Heat Transfer 1248 | . 18 75 . 108 525 309 213 Effects 2 | . . . . . . 2 . Interference 2 | . . . . . . 2 . Siege Activations . | . . . . . . . . Martial Activations . | . . . . . . . . Shielding Activations . | . . . . . . . . Robots Disrupted . | . . . . . . . . Combat Hostiles . | . . . . . . . . Robots Corrupted 2 | . . . . . . . 2 Combat Hostiles 2 | . . . . . . . 2 Parts Fried 5 | . . . . . . . 5 Impact Corruptions 9 | . . . . . . 5 4 Robots Melted . | . . . . . . . . Combat Hostiles . | . . . . . . . . Parts Melted 1 | . . . . . . 1 . Heat Transferred 575 | . . . . 200 . 375 . Parts Sabotaged . | . . . . . . . . Parts Stolen . | . . . . . . . . Parts Stripped . | . . . . . . . . Power Chain Reactions . | . . . . . . . . Alert | -11 -10 -9 -9 -8 -7 -7 -7 ------- Run | Yrd Mat Mat Min Mat Fac Low Low Maximum Alert Level . | . . . . . . . . Low Security (%) 100 | 100 100 100 100 100 100 . . Level 1 . | . . . . . . . . Level 2 . | . . . . . . . . Level 3 . | . . . . . . . . Level 4 . | . . . . . . . . Level 5 . | . . . . . . . . High Security . | . . . . . . . . Max Security . | . . . . . . . . Peak Influence 167 | . 101 167 126 119 117 . . Initial 47 | . . 32 47 34 40 . . Average 65 | . 21 103 108 60 66 . . Influence Increases 1599 | . 115 392 79 298 375 235 105 Destroy 0b10 Robot/C 1020 | . 60 260 60 160 220 180 80 Destroy 0b10 Robot/NC 45 | . 10 5 . 20 10 . . Destroy Leader 208 | . 14 50 10 42 72 10 10 Successful Hack 39 | . 4 7 . . 28 . . Disable Machine 45 | . . 9 9 27 . . . Destroy Structure 107 | . 27 46 . 34 . . . Lose Combat Pursuer 135 | . . 15 . 15 45 45 15 Influence Decreases 1599 | . 24 339 117 300 379 335 105 Entered New Map 337 | . . 59 97 72 64 45 . Time Decay 927 | . 24 120 20 198 295 185 85 Lost Part 170 | . . 10 . 30 20 90 20 Lost Ally 15 | . . . . . . 15 . Purge Threat 150 | . . 150 . . . . . Squads Dispatched 10 | . 1 2 . 2 5 . . Investigation 5 | . 1 . . 2 2 . . Extermination 1 | . . . . . 1 . . Reinforcement 4 | . . 2 . . 2 . . Assault . | . . . . . . . . Garrison . | . . . . . . . . Intercept . | . . . . . . . . Searches Triggered . | . . . . . . . . Construction Impeded . | . . . . . . . . Haulers Reinforced . | . . . . . . . . Active Scanning Responses . | . . . . . . . . Cargo Convoy Interrupts . | . . . . . . . . Stealth | -11 -10 -9 -9 -8 -7 -7 -7 --------- Run | Yrd Mat Mat Min Mat Fac Low Low Distress Signals 5 | . . 2 . 1 2 . . Communications Jammed . | . . . . . . . . Distress Signals . | . . . . . . . . Times Spotted 82 | . 6 13 2 14 21 14 12 Peak Tracking Total 7 | . 3 4 2 5 4 5 7 Tactical Retreats 9 | . . 1 . 1 3 3 1 Traps | -11 -10 -9 -9 -8 -7 -7 -7 ------- Run | Yrd Mat Mat Min Mat Fac Low Low Traps Triggered 3 | . 1 . . 2 . . . Indirectly . | . . . . . . . . Trap Hack Attempts . | . . . . . . . . Triggered . | . . . . . . . . Disarmed . | . . . . . . . . Reprogrammed . | . . . . . . . . Reused . | . . . . . . . . Traps Extracted . | . . . . . . . . Installed . | . . . . . . . . Triggered . | . . . . . . . . Machines | -11 -10 -9 -9 -8 -7 -7 -7 ---------- Run | Yrd Mat Mat Min Mat Fac Low Low Machines Disabled 5 | . . 1 1 3 . . . Max in Single Turn 2 | . . 1 1 2 . . . Garrison Access 1 | . . . . 1 . . . Machines Repaired . | . . . . . . . . Machines Dismantled . | . . . . . . . . Machines Sabotaged . | . . . . . . . . Overloaded Fab Kills . | . . . . . . . . Hacking | -11 -10 -9 -9 -8 -7 -7 -7 --------- Run | Yrd Mat Mat Min Mat Fac Low Low Machines Accessed 12 | . 2 1 . 4 4 1 . Terminals 9 | . 2 1 . 3 3 . . Fabricators 1 | . . . . . 1 . . Repair Stations . | . . . . . . . . Recycling Units . | . . . . . . . . Scanalyzers . | . . . . . . . . Garrison Access 1 | . . . . 1 . . . Total Hacks 30 | . 4 5 . 10 10 1 . Successful 14 | . 3 3 . 1 6 1 . Failed 16 | . 1 2 . 9 4 . . Catastrophic 2 | . . . . 1 1 . . Database Lockouts . | . . . . . . . . Manual 24 | . 3 4 . 7 9 1 . Terminals 25 | . 4 5 . 7 9 . . Fabricators 1 | . . . . . 1 . . Repair Stations . | . . . . . . . . Recycling Units . | . . . . . . . . Scanalyzers . | . . . . . . . . Garrison Access 3 | . . . . 3 . . . Terminal Hacks 5 | . 1 2 . . 1 1 . Prototype ID Bank 1 | . 1 . . . . . . Open Door 1 | . . . . . . 1 . Unreport Threat 1 | . . 1 . . . . . Recall Investigation 2 | . . 1 . . 1 . . Fabricator Hacks 1 | . . . . . 1 . . Build 1 | . . . . . 1 . . Repair Station Hacks . | . . . . . . . . Recycling Unit Hacks . | . . . . . . . . Scanalyzer . | . . . . . . . . Garrison Access Hacks 1 | . . . . 1 . . . Seal Access 1 | . . . . 1 . . . Unauthorized Hacks 7 | . 2 1 . . 4 . . Terminals 7 | . 2 1 . . 4 . . Assimilate 1 | . . . . . 1 . . Botnet 6 | . 2 1 . . 3 . . Fabricators . | . . . . . . . . Repair Stations . | . . . . . . . . Recycling Units . | . . . . . . . . Scanalyzers . | . . . . . . . . Garrison Access . | . . . . . . . . Data Cores Recovered 1 | . . . . 1 . . . Used . | . . . . . . . . Hacking Detections 11 | . 2 1 . 4 4 . . Full Trace Events 3 | . . . . 1 2 . . Feedback Events 1 | . . . . . 1 . . Corruption 1 | . . . . . 1 . . Feedback Blocked . | . . . . . . . . Robot Schematics Acquired . | . . . . . . . . Robots Built 2 | . . . . . 2 . . Authchips . | . . . . . . . . Time 38 | . . . . . 38 . . Total Robot Build Rating 6 | . . . . . 6 . . Part Schematics Acquired . | . . . . . . . . Parts Built . | . . . . . . . . Authchips . | . . . . . . . . Time . | . . . . . . . . Total Part Build Rating . | . . . . . . . . Part Studies Acquired . | . . . . . . . . Parts Repaired . | . . . . . . . . Time . | . . . . . . . . Parts Recycled . | . . . . . . . . Recycled Matter . | . . . . . . . . Retrieved Matter . | . . . . . . . . Retrieved Components . | . . . . . . . . Parts Scanalyzed . | . . . . . . . . Part Schematics Acquired . | . . . . . . . . Parts Damaged . | . . . . . . . . Bothacking | -11 -10 -9 -9 -8 -7 -7 -7 ------------ Run | Yrd Mat Mat Min Mat Fac Low Low Used RIF Installer . | . . . . . . . . Robots Hacked . | . . . . . . . . Non-combat . | . . . . . . . . Combat . | . . . . . . . . Robot Hacks Applied . | . . . . . . . . Relay Couplers Released . | . . . . . . . . Fabnet Peak Effective % . | . . . . . . . . Robots Rewired . | . . . . . . . . Allies Hacked . | . . . . . . . . Hacks Repelled . | . . . . . . . . Allies | -11 -10 -9 -9 -8 -7 -7 -7 -------- Run | Yrd Mat Mat Min Mat Fac Low Low Total Allies 2 | . . . . . 2 . . Largest Group 2 | . . . . . 2 2 . Highest-Rated Group 26 | . . . . . 26 26 . Highest-Rated Ally 13 | . . . . . 13 13 . Total Orders . | . . . . . . . . Ally Attacks . | . . . . . . . . Total Damage . | . . . . . . . . Kills . | . . . . . . . . Allies Corrupted . | . . . . . . . . Allies Melted . | . . . . . . . . Intel | -11 -10 -9 -9 -8 -7 -7 -7 ------- Run | Yrd Mat Mat Min Mat Fac Low Low Active Infowar (turns) 578 | . . 193 41 321 22 . 1 Seismic 577 | . . 193 41 321 22 . . ECM 1 | . . . . . . . 1 Robot Analysis Total . | . . . . . . . . Derelict Logs Recovered 1 | . . . . . . 1 . Drone Launches . | . . . . . . . . Drone Recoveries . | . . . . . . . . Exploration | -11 -10 -9 -9 -8 -7 -7 -7 ------------- Run | Yrd Mat Mat Min Mat Fac Low Low Turns Passed 2779 | 38 170 244 41 410 651 740 485 Spaces Moved 2329 | 36 171 173 21 413 428 658 429 Core 437 | 13 . . . . . 3 421 Treads . | . . . . . . . . Legs . | . . . . . . . . Wheels 1618 | 23 171 173 21 149 418 655 8 Hover 274 | . . . . 264 10 . . Flight . | . . . . . . . . Fastest Speed 50 | 50 80 80 95 57 57 50 50 Average Speed 90 | 70 80 93 95 68 91 94 107 Slowest Speed 250 | 100 95 95 95 95 93 105 250 Overloaded Moves . | . . . . . . . . Propulsion Burnouts . | . . . . . . . . Robots Hopped . | . . . . . . . . Potential Cave-ins . | . . . . . . . . Cave-ins Triggered . | . . . . . . . . Exploration Rate (%) 28 | 3 29 22 5 34 15 72 49 Regions Visited 7 Branch Regions 3 Pre-discovered Areas . | . . . . . . . . Known Exits Taken 1 | . . . . . 1 . . Unknown Exits Taken 6 | 1 1 1 1 1 . 1 . Scrap Searched 4 | . . . . . . 3 1 Spaces Dug . | . . . . . . . . Terrain Destroyed 110 | . 27 51 . 32 . . . Melee . | . . . . . . . . Projectile 2 | . 1 . . 1 . . . AOE 108 | . 26 51 . 31 . . . Terrain Rammed . | . . . . . . . . Walls Destroyed . | . . . . . . . . Machines Disabled . | . . . . . . . . Actions | -11 -10 -9 -9 -8 -7 -7 -7 --------- Run | Yrd Mat Mat Min Mat Fac Low Low Total 2731 | 47 190 211 27 487 611 718 440 Wait 102 | . . 3 . 5 84 10 . Move 2322 | 35 170 172 20 412 427 657 429 Hop . | . . . . . . . . Pick Up 49 | 6 7 4 . 13 15 4 . Fast Attach 7 | 1 . . . 3 3 . . Attach 25 | 5 1 2 . 5 3 6 3 Detach 1 | . . . . . . . 1 Swap 21 | . 3 3 . 4 11 . . Drop 30 | . 2 3 . 9 16 . . Fire 72 | . 7 24 7 22 4 8 . Melee 102 | . . . . 14 48 33 7 Ram . | . . . . . . . . Kick . | . . . . . . . . Crush . | . . . . . . . . Escape Stasis . | . . . . . . . . Rewire . | . . . . . . . . Trap . | . . . . . . . . Miscellaneous . | . . . . . . . . Route ------- -11/Scrapyard -10/Materials -9/Materials -9/Mines -8/Materials -7/Factory -7/Lower Caves -7/Lower Caves History --------- Turn | Location | Event 8 | -11/Scrapyard | Discovered new exit (range 15) 39 | -11/Scrapyard | Entered Materials 167 | -10/Materials | Discovered new exit (range 16) 209 | -10/Materials | Entered another Materials area 209 | -9/Materials | Evolved 2 slots: Propulsion x2 301 | -9/Materials | Build established: Mutant 432 | -9/Materials | Discovered new exit (range 6) 453 | -9/Materials | Entered Mines 488 | -9/Mines | Discovered new exit (range 5) 494 | -9/Mines | Entered Materials 494 | -8/Materials | Evolved 2 slots: Utility x2 901 | -8/Materials | Discovered new exit (range 5) 904 | -8/Materials | Entered Factory 904 | -7/Factory | Evolved 2 slots: Utility x2 1262 | -7/Factory | Build established: Hacker-Mutant 1456 | -7/Factory | Discovered new exit (range 15) 1534 | -7/Factory | Fabricated W-25 Informer (x2) 1554 | -7/Factory | Identified exit to Lower Caves 1555 | -7/Factory | Entered Lower Caves 1555 | -7/Lower Caves | Accompanied by 2 allies 1597 | -7/Lower Caves | Spotted B-75 Beast 1669 | -7/Lower Caves | Learned Factory security intel 1964 | -7/Lower Caves | Attracted the attention of an 0b10 checkpoint 2246 | -7/Lower Caves | Lost 8 parts (1p3n2u2w) 2280 | -7/Lower Caves | Discovered new exit (range 10) 2295 | -7/Lower Caves | Entered another Lower Caves area 2318 | -7/Lower Caves | Core integrity fell below 50% 2505 | -7/Lower Caves | Spotted B-75 Beast 2612 | -7/Lower Caves | Core integrity fell below 20% 2780 | -7/Lower Caves | Destroyed by S-27 Virus with Autogun Last Messages --------------- 02611_ Acquired 5 matter. 02639_ Neutrino Core destroyed. 02668_ System corrupted: Substantial component data lost. 02688_ Acquired 3 matter. 02701_ Acquired 4 matter. 02703_ System corrupted: Matter fused (-6). 02707_ NP-NYV(k) breaks down the debris. 02708_ Acquired 3 matter. 02709_ Acquired 2 matter. 02711_ Acquired 1 matter. 02716_ 4K-4Y7(k) breaks down the debris. 02768_ Hacking Suite destroyed. 02769_ System corrupted: Matter fused (-5). 02776_ Searching scrap... 02776_ Found Hcp. Storage Unit. 02776_ Found Datajack. 02776_ Found Component Analysis Suite. 02776_ Found 41 Matter. 02777_ Acquired 5 matter. Map ----- +----------------------------------------------------+ | ?????????????????????????????????????????????????? | | ?????????????????????????????????????????????????? | | ?????????????????????????????????????????????????? | | ####??????###???#####??????????????????????????? | | ##### ##### ##?????????????????????????? | | ## ######????????????????????? | | #????????????????????? | | #????????????????????? | | #### ###### ### #????????????????????? | | ????## #????### #?# #????????????????????? | | ???????## #?######### ##???????????????????? | | ????###### % #?# #???????????????????? | | ?????## ### ### #???????????????????? | | ?????# ### =%* ### #???????????????????? | | ?????# ####### #?## #???????????????????? | | ?????# #????# #??## #???????????????????? | | ?????# ###### ###?# ##???????????????????? | | ????## #?# #????????????????????? | | ????# ###### #?# #????????????????????? | | ???## ## ##???# ### #????????????????????? | | ?### #####?????# ## #????????????????????? | | ?# ##????????#### # #????????????????????? | | ?## % ##???????????# ###??????????????????? | | #?# #????????#### #??????????????????? | | ### ########## #??????????????????? | | % ### @ #??????????????????? | | ###?# l #??????????????????? | | % ##???# #### ###+####s###??????????????????? | | % ##?????????# #" #!%# #????????????????????? | | ####????????### #" %#/ ! #????????????????????? | | %#???????????# #" */ #????????????????????? | | % #???????????## #" / #????????????????????? | | ##????????????## #" # #????????????????????? | | #??????????????## #" # # #????????????????????? | | #??????????????# ###/#### #????????????????????? | | ???????????# #????????????????????? | | ????????############????????????????????? | | # % %????????????????????????????????????????? | | ?# ???????????????????????????????????????? | | ??# % % ???????????????????????????????????????? | | #??# ????????????????????????????####??????### | | #??# %???????????????????????????## ######## | | ##???# ????????????????#############* % | | #??????%????????????????# %%= % ### | | ?##????????????????####?# ########### #?# | | # ##???????######?# ### #??####???#### ##?# | | #??????## # #?# ## ## ##?????###??# | | #???### #?# # # ???????????## | | #???# ### #% # # ?????????????# # | | ##??## # # ## ### # # # #???##????????# # | +----------------------------------------------------+ Best States ------------- Heat Dissipation 34 Energy Generation 19 Energy Capacity 315 Matter Stores 500 Matter Capacity 500 Sight Range 16 Terrain Scan Density 10 Additional Mass Support 9 Armor Coverage 600 Resistance: KI 20 Resistance: TH 20 Resistance: EX 20 Resistance: EM 20 Resistance: I 20 Resistance: S 20 Resistance: P 20 Propulsion Shielding 66 Evasion (%) 53 Targeting Accuracy 8 Offensive Hacking 20 Item Schematics ----------------- None Robot Schematics ------------------ None Fabricated ------------ W-25 Informer | x2 | -7/Factory | Preloaded Repaired ---------- Nothing Studied --------- None Alien Tech Used ----------------- None Achievements -------------- Deductive Reasoning Challenges ------------ None Game ------ Seed CloakingBraceStick Manual? 0 Play Time 00:50:01 Cumulative 59.4 hours Start 2025.10.26 @ 20:18:30 End 2025.10.26 @ 21:10:38 Sessions 1 Manual Loads 0 Difficulty Adventurer Special Mode None Game No. 59 Rogue 0 Adventurer 59 Explorer 0 Win Type - Total 0 Types 0/0/0/0/0/0/0/0/0/0 Lore% 22 Gallery% 36 Achievement% 22 Wizard Run 0 Options --------- Layout 1 ASCII 0 Keyboard 0 Movement Mouse Keybinds 0 Fullscreen 1 Font 16/SmallcapsGlow Map View 50x40 Zoom Use 0% Tactical HUD 1 Map Filters NONE Filters NONE Steam SD RUN: f1ec88f4-6879-4c39-a854-fee66ae45de4